[Event "Titled Tuesday Blitz April 19 Early 2022"]
[White "Krishna, C R G"]
[Black "Oparin, Grigoriy"]
[WhiteFideId "5018625"]
[BlackFideId "24125890"]
[WhiteElo "2332"]
[BlackElo "2665"]
[Result "1/2-1/2"]
[Round "11"]
[TimeControl "180+1"]
[Date "2022.04.19"]
[WhiteClock "0:00:10"]
[BlackClock "0:00:07"]

1. d4 {[%clk 0:03:00]}  Nf6 {[%clk 0:02:59]} 2. Nf3 {[%clk 0:03:00]}  e6 {[%clk 0:03:00]} 3. e3 {[%clk 0:03:00]}  d5 {[%clk 0:02:59]} 4. Bd3 {[%clk 0:03:01]}  b6 {[%clk 0:02:58]} 5. O-O {[%clk 0:03:01]}  Bb7 {[%clk 0:02:58]} 6. c4 {[%clk 0:03:02]}  Bd6 {[%clk 0:02:59]} 7. cxd5 {[%clk 0:03:01]}  exd5 {[%clk 0:02:58]} 8. Nc3 {[%clk 0:03:01]}  O-O {[%clk 0:02:58]} 9. b3 {[%clk 0:03:01]}  Nbd7 {[%clk 0:02:58]} 10. Bb2 {[%clk 0:03:01]}  a6 {[%clk 0:02:58]} 11. Ne2 {[%clk 0:02:59]}  Qe7 {[%clk 0:02:54]} 12. Ng3 {[%clk 0:03:00]}  g6 {[%clk 0:02:54]} 13. Rc1 {[%clk 0:03:00]}  h5 {[%clk 0:02:50]} 14. Qc2 {[%clk 0:02:57]}  Ne4 {[%clk 0:02:47]} 15. Bxe4 {[%clk 0:02:51]}  dxe4 {[%clk 0:02:46]} 16. Nd2 {[%clk 0:02:51]}  f5 {[%clk 0:02:39]} 17. Nc4 {[%clk 0:02:47]}  Nf6 {[%clk 0:02:34]} 18. Nxd6 {[%clk 0:02:44]}  cxd6 {[%clk 0:02:34]} 19. Qc7 {[%clk 0:02:28]}  Qxc7 {[%clk 0:02:33]} 20. Rxc7 {[%clk 0:02:27]}  Rf7 {[%clk 0:02:33]} 21. Rfc1 {[%clk 0:02:25]}  Nd5 {[%clk 0:02:32]} 22. Rxf7 {[%clk 0:02:21]}  Kxf7 {[%clk 0:02:33]} 23. Ne2 {[%clk 0:02:19]}  Ke6 {[%clk 0:02:28]} 24. Nc3 {[%clk 0:02:19]}  Kd7 {[%clk 0:02:26]} 25. Nxd5 {[%clk 0:02:17]}  Bxd5 {[%clk 0:02:27]} 26. h4 {[%clk 0:02:15]}  a5 {[%clk 0:02:27]} 27. Kh2 {[%clk 0:02:04]}  Rg8 {[%clk 0:02:17]} 28. Rc3 {[%clk 0:01:52]}  g5 {[%clk 0:02:05]} 29. hxg5 {[%clk 0:01:50]}  Rxg5 {[%clk 0:02:06]} 30. g3 {[%clk 0:01:42]}  Rg4 {[%clk 0:02:06]} 31. Rc1 {[%clk 0:01:39]}  h4 {[%clk 0:01:56]} 32. Rg1 {[%clk 0:01:37]}  Be6 {[%clk 0:01:56]} 33. d5 {[%clk 0:01:13]}  Bxd5 {[%clk 0:01:51]} 34. Rd1 {[%clk 0:01:13]}  hxg3+ {[%clk 0:01:46]} 35. fxg3 {[%clk 0:01:13]}  Ke6 {[%clk 0:01:44]} 36. Bd4 {[%clk 0:01:12]}  b5 {[%clk 0:01:44]} 37. Bb6 {[%clk 0:01:05]}  a4 {[%clk 0:01:44]} 38. bxa4 {[%clk 0:01:06]}  bxa4 {[%clk 0:01:45]} 39. a3 {[%clk 0:01:06]}  Rg7 {[%clk 0:01:39]} 40. Rd4 {[%clk 0:01:01]}  Bb3 {[%clk 0:01:20]} 41. Ba5 {[%clk 0:00:56]}  Ra7 {[%clk 0:01:10]} 42. Bb4 {[%clk 0:00:43]}  d5 {[%clk 0:01:10]} 43. Rd2 {[%clk 0:00:43]}  Rc7 {[%clk 0:01:06]} 44. Kh3 {[%clk 0:00:43]}  Rc1 {[%clk 0:00:57]} 45. g4 {[%clk 0:00:39]}  Rg1 {[%clk 0:00:26]} 46. gxf5+ {[%clk 0:00:38]}  Kxf5 {[%clk 0:00:27]} 47. Rf2+ {[%clk 0:00:38]}  Ke6 {[%clk 0:00:27]} 48. Bc3 {[%clk 0:00:37]}  Bd1 {[%clk 0:00:23]} 49. Kh2 {[%clk 0:00:35]}  Rg8 {[%clk 0:00:20]} 50. Rg2 {[%clk 0:00:34]}  Rc8 {[%clk 0:00:18]} 51. Bd4 {[%clk 0:00:33]}  Rb8 {[%clk 0:00:17]} 52. Rg6+ {[%clk 0:00:33]}  Kf5 {[%clk 0:00:15]} 53. Rf6+ {[%clk 0:00:32]}  Kg5 {[%clk 0:00:16]} 54. Rd6 {[%clk 0:00:31]}  Bb3 {[%clk 0:00:16]} 55. Kg3 {[%clk 0:00:30]}  Rc8 {[%clk 0:00:15]} 56. Rd7 {[%clk 0:00:24]}  Rc2 {[%clk 0:00:15]} 57. Rg7+ {[%clk 0:00:24]}  Kf5 {[%clk 0:00:15]} 58. Re7 {[%clk 0:00:21]}  Ra2 {[%clk 0:00:14]} 59. Bc5 {[%clk 0:00:20]}  Bc4 {[%clk 0:00:11]} 60. Rf7+ {[%clk 0:00:18]}  Ke6 {[%clk 0:00:11]} 61. Re7+ {[%clk 0:00:18]}  Kf6 {[%clk 0:00:12]} 62. Re8 {[%clk 0:00:15]}  Bb3 {[%clk 0:00:10]} 63. Rb8 {[%clk 0:00:09]}  Ke6 {[%clk 0:00:09]} 64. Rd8 {[%clk 0:00:09]}  Bd1 {[%clk 0:00:07]} 65. Rd6+ {[%clk 0:00:07]}  Ke5 {[%clk 0:00:07]} 66. Rd8 {[%clk 0:00:08]}  Bb3 {[%clk 0:00:07]} 67. Re8+ {[%clk 0:00:07]}  Kf5 {[%clk 0:00:07]} 68. Rf8+ {[%clk 0:00:07]}  Ke6 {[%clk 0:00:08]} 69. Rd8 {[%clk 0:00:08]}  Rc2 {[%clk 0:00:08]} 70. Rd6+ {[%clk 0:00:07]}  Ke5 {[%clk 0:00:08]} 71. Rc6 {[%clk 0:00:07]}  Kf5 {[%clk 0:00:08]} 72. Rc7 {[%clk 0:00:06]}  d4 {[%clk 0:00:07]} 73. exd4 {[%clk 0:00:05]}  e3 {[%clk 0:00:07]} 74. Re7 {[%clk 0:00:05]}  Rc3 {[%clk 0:00:05]} 75. Re5+ {[%clk 0:00:05]}  Kg6 {[%clk 0:00:05]} 76. Bb4 {[%clk 0:00:05]}  Rd3 {[%clk 0:00:04]} 77. Kf4 {[%clk 0:00:05]}  Rxd4+ {[%clk 0:00:03]} 78. Kxe3 {[%clk 0:00:05]}  Rc4 {[%clk 0:00:04]} 79. Kd3 {[%clk 0:00:05]}  Rh4 {[%clk 0:00:04]} 80. Ra5 {[%clk 0:00:05]}  Kf6 {[%clk 0:00:03]} 81. Kc3 {[%clk 0:00:05]}  Ke6 {[%clk 0:00:03]} 82. Kd3 {[%clk 0:00:06]}  Rh3+ {[%clk 0:00:03]} 83. Kd4 {[%clk 0:00:06]}  Rh4+ {[%clk 0:00:04]} 84. Kc3 {[%clk 0:00:06]}  Rc4+ {[%clk 0:00:04]} 85. Kd3 {[%clk 0:00:06]}  Rc8 {[%clk 0:00:05]} 86. Ra6+ {[%clk 0:00:06]}  Kd5 {[%clk 0:00:05]} 87. Ra5+ {[%clk 0:00:06]}  Ke6 {[%clk 0:00:06]} 88. Ra6+ {[%clk 0:00:07]}  Kd7 {[%clk 0:00:06]} 89. Ra7+ {[%clk 0:00:06]}  Kc6 {[%clk 0:00:07]} 90. Ra6+ {[%clk 0:00:06]}  Kb5 {[%clk 0:00:07]} 91. Ra5+ {[%clk 0:00:06]}  Kb6 {[%clk 0:00:07]} 92. Rg5 {[%clk 0:00:07]}  Rh8 {[%clk 0:00:06]} 93. Rg6+ {[%clk 0:00:07]}  Kb7 {[%clk 0:00:06]} 94. Rg7+ {[%clk 0:00:07]}  Kc6 {[%clk 0:00:07]} 95. Rg6+ {[%clk 0:00:07]}  Kd5 {[%clk 0:00:07]} 96. Rg5+ {[%clk 0:00:07]}  Ke6 {[%clk 0:00:07]} 97. Rg6+ {[%clk 0:00:07]}  Kf5 {[%clk 0:00:08]} 98. Rb6 {[%clk 0:00:06]}  Rh3+ {[%clk 0:00:07]} 99. Kd4 {[%clk 0:00:07]}  Rh4+ {[%clk 0:00:07]} 100. Kd3 {[%clk 0:00:06]}  Rh3+ {[%clk 0:00:07]} 101. Kd4 {[%clk 0:00:07]}  Rh1 {[%clk 0:00:08]} 102. Rb5+ {[%clk 0:00:07]}  Kf4 {[%clk 0:00:08]} 103. Rb8 {[%clk 0:00:06]}  Kf3 {[%clk 0:00:08]} 104. Re8 {[%clk 0:00:05]}  Rd1+ {[%clk 0:00:06]} 105. Kc3 {[%clk 0:00:06]}  Rd7 {[%clk 0:00:07]} 106. Re7 {[%clk 0:00:05]}  Rd8 {[%clk 0:00:06]} 107. Re5 {[%clk 0:00:05]}  Bd5 {[%clk 0:00:05]} 108. Be7 {[%clk 0:00:03]}  Rd7 {[%clk 0:00:05]} 109. Bc5 {[%clk 0:00:02]}  Be4 {[%clk 0:00:05]} 110. Kb4 {[%clk 0:00:02]}  Bc2 {[%clk 0:00:05]} 111. Re3+ {[%clk 0:00:02]}  Kf4 {[%clk 0:00:05]} 112. Rc3 {[%clk 0:00:02]}  Rb7+ {[%clk 0:00:06]} 113. Ka5 {[%clk 0:00:02]}  Bb3 {[%clk 0:00:06]} 114. Bb4 {[%clk 0:00:02]}  Ke4 {[%clk 0:00:06]} 115. Rc8 {[%clk 0:00:01]}  Kd5 {[%clk 0:00:06]} 116. Rd8+ {[%clk 0:00:02]}  Ke4 {[%clk 0:00:05]} 117. Rc8 {[%clk 0:00:02]}  Kd4 {[%clk 0:00:05]} 118. Rc5 {[%clk 0:00:03]}  Bd5 {[%clk 0:00:06]} 119. Rc8 {[%clk 0:00:03]}  Bc4 {[%clk 0:00:05]} 120. Rd8+ {[%clk 0:00:03]}  Bd5 {[%clk 0:00:05]} 121. Kxa4 {[%clk 0:00:04]}  Kc4 {[%clk 0:00:05]} 122. Ka5 {[%clk 0:00:04]}  Bc6 {[%clk 0:00:05]} 123. Rc8 {[%clk 0:00:04]}  Kd5 {[%clk 0:00:05]} 124. Ka6 {[%clk 0:00:05]}  Rf7 {[%clk 0:00:03]} 125. Rd8+ {[%clk 0:00:05]}  Kc4 {[%clk 0:00:03]} 126. Kb6 {[%clk 0:00:06]}  Ba4 {[%clk 0:00:03]} 127. Rc8+ {[%clk 0:00:06]}  Kb3 {[%clk 0:00:03]} 128. Rc3+ {[%clk 0:00:07]}  Ka2 {[%clk 0:00:04]} 129. Re3 {[%clk 0:00:07]}  Kb2 {[%clk 0:00:04]} 130. Ka5 {[%clk 0:00:07]}  Ra7+ {[%clk 0:00:04]} 131. Kb6 {[%clk 0:00:08]}  Rh7 {[%clk 0:00:05]} 132. Ka5 {[%clk 0:00:08]}  Ra7+ {[%clk 0:00:05]} 133. Kb6 {[%clk 0:00:09]}  Ra8 {[%clk 0:00:06]} 134. Kb7 {[%clk 0:00:09]}  Rg8 {[%clk 0:00:06]} 135. Kb6 {[%clk 0:00:09]}  Ra8 {[%clk 0:00:06]} 136. Kb7 {[%clk 0:00:09]}  Rg8 {[%clk 0:00:06]} 137. Kb6 {[%clk 0:00:10]}  Ra8 {[%clk 0:00:07]} 1/2-1/2


[Site "https://www.chess.com"]

[Event "Titled Tuesday Blitz April 19 Early 2022"]
[White "Lach, Aleksandra"]
[Black "Rodchenkov, Vitaly"]
[WhiteFideId "1134299"]
[BlackFideId "4152964"]
[WhiteElo "2172"]
[BlackElo "2337"]
[Result "0-1"]
[Round "11"]
[TimeControl "180+1"]
[Date "2022.04.19"]
[WhiteClock "0:00:08"]
[BlackClock "0:00:18"]

1. e4 {[%clk 0:02:58]}  c6 {[%clk 0:03:00]} 2. d4 {[%clk 0:02:57]}  d5 {[%clk 0:03:01]} 3. exd5 {[%clk 0:02:58]}  cxd5 {[%clk 0:03:01]} 4. Bd3 {[%clk 0:02:58]}  Nc6 {[%clk 0:03:00]} 5. c3 {[%clk 0:02:58]}  Nf6 {[%clk 0:03:00]} 6. Bf4 {[%clk 0:02:58]}  g6 {[%clk 0:03:01]} 7. Ne2 {[%clk 0:02:49]}  Bf5 {[%clk 0:03:00]} 8. Bxf5 {[%clk 0:02:36]}  gxf5 {[%clk 0:02:59]} 9. Ng3 {[%clk 0:02:37]}  e6 {[%clk 0:02:58]} 10. Nd2 {[%clk 0:02:36]}  Bd6 {[%clk 0:02:56]} 11. Qf3 {[%clk 0:02:28]}  Rg8 {[%clk 0:02:26]} 12. h3 {[%clk 0:02:23]}  Bxf4 {[%clk 0:02:22]} 13. Qxf4 {[%clk 0:02:23]}  b5 {[%clk 0:02:21]} 14. O-O {[%clk 0:02:14]}  a5 {[%clk 0:02:19]} 15. Rfe1 {[%clk 0:02:13]}  b4 {[%clk 0:02:13]} 16. Nxf5 {[%clk 0:01:59]}  bxc3 {[%clk 0:02:11]} 17. bxc3 {[%clk 0:01:58]}  Qb8 {[%clk 0:02:03]} 18. Qh4 {[%clk 0:01:42]}  Rg6 {[%clk 0:02:00]} 19. Ne3 {[%clk 0:01:25]}  Qd6 {[%clk 0:01:50]} 20. Rab1 {[%clk 0:01:11]}  O-O-O {[%clk 0:01:44]} 21. Nf3 {[%clk 0:00:52]}  Rdg8 {[%clk 0:01:38]} 22. Kh1 {[%clk 0:00:52]}  Ne4 {[%clk 0:01:34]} 23. Rb2 {[%clk 0:00:45]}  Rf6 {[%clk 0:01:27]} 24. Ng4 {[%clk 0:00:41]}  Rf4 {[%clk 0:01:22]} 25. Qxh7 {[%clk 0:00:38]}  Qf8 {[%clk 0:01:16]} 26. Qh6 {[%clk 0:00:18]}  Qxh6 {[%clk 0:01:12]} 27. Nxh6 {[%clk 0:00:17]}  Rh8 {[%clk 0:01:10]} 28. Nxf7 {[%clk 0:00:15]}  Rxf7 {[%clk 0:01:07]} 29. Reb1 {[%clk 0:00:16]}  Rh6 {[%clk 0:01:01]} 30. Rb6 {[%clk 0:00:16]}  Rc7 {[%clk 0:00:58]} 31. c4 {[%clk 0:00:16]}  dxc4 {[%clk 0:00:56]} 32. Rc1 {[%clk 0:00:17]}  c3 {[%clk 0:00:54]} 33. Kg1 {[%clk 0:00:13]}  Kd7 {[%clk 0:00:47]} 34. Rb5 {[%clk 0:00:13]}  Ke7 {[%clk 0:00:42]} 35. d5 {[%clk 0:00:14]}  Nb4 {[%clk 0:00:39]} 36. dxe6 {[%clk 0:00:11]}  Nxa2 {[%clk 0:00:37]} 37. Rc2 {[%clk 0:00:08]}  Nb4 {[%clk 0:00:36]} 38. Rc1 {[%clk 0:00:09]}  Rh8 {[%clk 0:00:32]} 39. Nd4 {[%clk 0:00:09]}  Rd8 {[%clk 0:00:28]} 40. Nc2 {[%clk 0:00:08]}  Nxc2 {[%clk 0:00:23]} 41. Rxc2 {[%clk 0:00:08]}  Rd2 {[%clk 0:00:20]} 42. Rc1 {[%clk 0:00:08]}  c2 {[%clk 0:00:18]} 0-1


[Site "https://www.chess.com"]

[Event "Titled Tuesday Blitz April 19 Early 2022"]
[White "Lehtosaari, Mauri"]
[Black "Sliwicki, Damian"]
[WhiteFideId "501999"]
[BlackFideId "1127128"]
[WhiteElo "2512"]
[BlackElo "2084"]
[Result "1-0"]
[Round "11"]
[TimeControl "180+1"]
[Date "2022.04.19"]
[WhiteClock "0:01:30"]
[BlackClock "0:01:13"]

1. d4 {[%clk 0:03:00]}  c5 {[%clk 0:03:00]} 2. c3 {[%clk 0:03:00]}  cxd4 {[%clk 0:02:50]} 3. cxd4 {[%clk 0:02:56]}  Nf6 {[%clk 0:02:49]} 4. Nc3 {[%clk 0:02:56]}  g6 {[%clk 0:02:49]} 5. Nf3 {[%clk 0:02:56]}  d5 {[%clk 0:02:49]} 6. Bf4 {[%clk 0:02:53]}  Bg7 {[%clk 0:02:49]} 7. e3 {[%clk 0:02:53]}  O-O {[%clk 0:02:47]} 8. Qb3 {[%clk 0:02:50]}  Nc6 {[%clk 0:02:43]} 9. Be2 {[%clk 0:02:44]}  b6 {[%clk 0:02:36]} 10. O-O {[%clk 0:02:40]}  Bf5 {[%clk 0:02:33]} 11. Rac1 {[%clk 0:02:34]}  Rc8 {[%clk 0:02:34]} 12. Ba6 {[%clk 0:02:30]}  Na5 {[%clk 0:02:26]} 13. Qa4 {[%clk 0:02:11]}  Rc7 {[%clk 0:02:20]} 14. Bxc7 {[%clk 0:02:08]}  Qxc7 {[%clk 0:02:19]} 15. Nxd5 {[%clk 0:02:04]}  Qd6 {[%clk 0:01:48]} 16. Nxf6+ {[%clk 0:01:55]}  Bxf6 {[%clk 0:01:49]} 17. b4 {[%clk 0:01:54]}  Bd7 {[%clk 0:01:37]} 18. Bb5 {[%clk 0:01:40]}  Bxb5 {[%clk 0:01:26]} 19. Qxb5 {[%clk 0:01:41]}  Nb7 {[%clk 0:01:26]} 20. a3 {[%clk 0:01:34]}  Nd8 {[%clk 0:01:13]} 21. Rc8 {[%clk 0:01:30]} 1-0


[Site "https://www.chess.com"]

[Event "Titled Tuesday Blitz April 19 Early 2022"]
[White "Liyanage, Ranindu Dilshan"]
[Black "Shyaamnikhil P"]
[WhiteFideId "9915834"]
[BlackFideId "5024218"]
[WhiteElo "2619"]
[BlackElo "2717"]
[Result "0-1"]
[Round "11"]
[TimeControl "180+1"]
[Date "2022.04.19"]
[WhiteClock "0:00:02"]
[BlackClock "0:00:05"]

1. d4 {[%clk 0:03:00]}  Nf6 {[%clk 0:02:59]} 2. Nc3 {[%clk 0:03:01]}  d5 {[%clk 0:02:58]} 3. Bf4 {[%clk 0:03:02]}  g6 {[%clk 0:02:48]} 4. Nb5 {[%clk 0:02:52]}  Na6 {[%clk 0:02:47]} 5. e3 {[%clk 0:02:52]}  c6 {[%clk 0:02:46]} 6. Nc3 {[%clk 0:02:50]}  Nc7 {[%clk 0:02:45]} 7. h3 {[%clk 0:02:50]}  Ne6 {[%clk 0:02:45]} 8. Bh2 {[%clk 0:02:48]}  Bg7 {[%clk 0:02:45]} 9. Nf3 {[%clk 0:02:48]}  O-O {[%clk 0:02:44]} 10. Be2 {[%clk 0:02:44]}  Ne8 {[%clk 0:02:41]} 11. h4 {[%clk 0:02:38]}  h5 {[%clk 0:02:35]} 12. Ne5 {[%clk 0:02:38]}  Nf6 {[%clk 0:02:26]} 13. g4 {[%clk 0:02:26]}  hxg4 {[%clk 0:02:24]} 14. Nxg4 {[%clk 0:02:27]}  Nxg4 {[%clk 0:02:21]} 15. Bxg4 {[%clk 0:02:28]}  Qb6 {[%clk 0:02:13]} 16. Rb1 {[%clk 0:02:25]}  f5 {[%clk 0:02:05]} 17. Bh3 {[%clk 0:02:17]}  f4 {[%clk 0:02:04]} 18. h5 {[%clk 0:02:17]}  fxe3 {[%clk 0:02:01]} 19. fxe3 {[%clk 0:02:18]}  Ng5 {[%clk 0:01:59]} 20. Bxc8 {[%clk 0:02:13]}  Nf3+ {[%clk 0:01:50]} 21. Ke2 {[%clk 0:02:10]}  Raxc8 {[%clk 0:01:49]} 22. Qd3 {[%clk 0:01:58]}  Rf5 {[%clk 0:01:37]} 23. hxg6 {[%clk 0:01:45]}  Rcf8 {[%clk 0:01:35]} 24. Rbf1 {[%clk 0:01:37]}  Qxb2 {[%clk 0:00:52]} 25. Bf4 {[%clk 0:01:05]}  Nxd4+ {[%clk 0:00:44]} 26. exd4 {[%clk 0:01:05]}  Rxf4 {[%clk 0:00:44]} 27. Rxf4 {[%clk 0:01:06]}  Rxf4 {[%clk 0:00:44]} 28. Rb1 {[%clk 0:01:07]}  Qa3 {[%clk 0:00:41]} 29. Qh3 {[%clk 0:00:57]}  Qd6 {[%clk 0:00:34]} 30. Rxb7 {[%clk 0:00:51]}  Qxg6 {[%clk 0:00:20]} 31. Rxe7 {[%clk 0:00:46]}  Bxd4 {[%clk 0:00:18]} 32. Kd1 {[%clk 0:00:18]}  Bxc3 {[%clk 0:00:15]} 33. Qxc3 {[%clk 0:00:15]}  Qg1+ {[%clk 0:00:14]} 34. Re1 {[%clk 0:00:15]}  Qd4+ {[%clk 0:00:14]} 35. Qxd4 {[%clk 0:00:16]}  Rxd4+ {[%clk 0:00:14]} 36. Kc1 {[%clk 0:00:17]}  Kf7 {[%clk 0:00:14]} 37. Kb2 {[%clk 0:00:17]}  Re4 {[%clk 0:00:13]} 38. Rg1 {[%clk 0:00:17]}  a5 {[%clk 0:00:13]} 39. Rh1 {[%clk 0:00:17]}  Ke7 {[%clk 0:00:11]} 40. Rh7+ {[%clk 0:00:16]}  Kd6 {[%clk 0:00:11]} 41. Ra7 {[%clk 0:00:16]}  a4 {[%clk 0:00:11]} 42. Ka3 {[%clk 0:00:16]}  Rc4 {[%clk 0:00:11]} 43. Kb2 {[%clk 0:00:16]}  Kc5 {[%clk 0:00:11]} 44. Ra5+ {[%clk 0:00:14]}  Kb4 {[%clk 0:00:12]} 45. Ra8 {[%clk 0:00:13]}  a3+ {[%clk 0:00:12]} 46. Kc1 {[%clk 0:00:10]}  Rc3 {[%clk 0:00:12]} 47. Rb8+ {[%clk 0:00:10]}  Kc4 {[%clk 0:00:12]} 48. Kd2 {[%clk 0:00:08]}  c5 {[%clk 0:00:11]} 49. Ra8 {[%clk 0:00:07]}  Rh3 {[%clk 0:00:11]} 50. Ra4+ {[%clk 0:00:07]}  Kb5 {[%clk 0:00:11]} 51. Ra8 {[%clk 0:00:08]}  d4 {[%clk 0:00:11]} 52. Ra7 {[%clk 0:00:07]}  Kc4 {[%clk 0:00:11]} 53. Ra4+ {[%clk 0:00:06]}  Kd5 {[%clk 0:00:11]} 54. Ra8 {[%clk 0:00:07]}  Rh2+ {[%clk 0:00:11]} 55. Kd1 {[%clk 0:00:07]}  Rh1+ {[%clk 0:00:11]} 56. Kd2 {[%clk 0:00:07]}  Rh3 {[%clk 0:00:11]} 57. Kd1 {[%clk 0:00:07]}  c4 {[%clk 0:00:11]} 58. Kd2 {[%clk 0:00:06]}  Kc5 {[%clk 0:00:11]} 59. Rc8+ {[%clk 0:00:06]}  Kb5 {[%clk 0:00:10]} 60. Rb8+ {[%clk 0:00:06]}  Ka6 {[%clk 0:00:10]} 61. Rd8 {[%clk 0:00:05]}  c3+ {[%clk 0:00:09]} 62. Kd1 {[%clk 0:00:04]}  Rh1+ {[%clk 0:00:09]} 63. Ke2 {[%clk 0:00:04]}  Rh2+ {[%clk 0:00:09]} 64. Kd1 {[%clk 0:00:04]}  Rd2+ {[%clk 0:00:09]} 65. Kc1 {[%clk 0:00:04]}  Kb5 {[%clk 0:00:09]} 66. Rd7 {[%clk 0:00:04]}  Kc5 {[%clk 0:00:09]} 67. Rc7+ {[%clk 0:00:04]}  Kd6 {[%clk 0:00:09]} 68. Rc8 {[%clk 0:00:04]}  Rh2 {[%clk 0:00:08]} 69. Rd8+ {[%clk 0:00:05]}  Kc5 {[%clk 0:00:07]} 70. Rc8+ {[%clk 0:00:05]}  Kd5 {[%clk 0:00:07]} 71. Rd8+ {[%clk 0:00:05]}  Ke5 {[%clk 0:00:07]} 72. Re8+ {[%clk 0:00:05]}  Kf5 {[%clk 0:00:07]} 73. Kd1 {[%clk 0:00:05]}  d3 {[%clk 0:00:05]} 74. cxd3 {[%clk 0:00:04]}  Rxa2 {[%clk 0:00:05]} 75. Rc8 {[%clk 0:00:04]}  Rh2 {[%clk 0:00:05]} 76. Ra8 {[%clk 0:00:02]}  a2 {[%clk 0:00:05]} 0-1


[Site "https://www.chess.com"]

[Event "Titled Tuesday Blitz April 19 Early 2022"]
[White "Ljukin, Sergei"]
[Black "Avazkhonov, Alikhon"]
[WhiteFideId "14102200"]
[BlackFideId "14208504"]
[WhiteElo "2312"]
[BlackElo "1739"]
[Result "1-0"]
[Round "11"]
[TimeControl "180+1"]
[Date "2022.04.19"]
[WhiteClock "0:00:49"]
[BlackClock "0:00:02"]

1. e4 {[%clk 0:03:00]}  c5 {[%clk 0:02:50]} 2. Nf3 {[%clk 0:03:00]}  d6 {[%clk 0:02:50]} 3. d4 {[%clk 0:03:00]}  cxd4 {[%clk 0:02:51]} 4. Nxd4 {[%clk 0:03:01]}  Nf6 {[%clk 0:02:52]} 5. Nc3 {[%clk 0:03:01]}  a6 {[%clk 0:02:52]} 6. Bg5 {[%clk 0:03:01]}  e6 {[%clk 0:02:53]} 7. f4 {[%clk 0:03:01]}  h6 {[%clk 0:02:53]} 8. Bh4 {[%clk 0:03:01]}  Be7 {[%clk 0:02:53]} 9. Qf3 {[%clk 0:03:00]}  Nbd7 {[%clk 0:02:54]} 10. O-O-O {[%clk 0:03:00]}  Qc7 {[%clk 0:02:54]} 11. Bg3 {[%clk 0:03:00]}  b5 {[%clk 0:02:41]} 12. e5 {[%clk 0:02:59]}  Bb7 {[%clk 0:02:41]} 13. Qe2 {[%clk 0:02:59]}  dxe5 {[%clk 0:02:36]} 14. fxe5 {[%clk 0:02:58]}  Nd5 {[%clk 0:02:36]} 15. Nxd5 {[%clk 0:02:58]}  Bxd5 {[%clk 0:02:37]} 16. Nf5 {[%clk 0:02:59]}  Bc4 {[%clk 0:02:08]} 17. Nxg7+ {[%clk 0:02:51]}  Kf8 {[%clk 0:02:07]} 18. Qg4 {[%clk 0:02:49]}  Nxe5 {[%clk 0:01:14]} 19. Qe4 {[%clk 0:02:03]}  Bg5+ {[%clk 0:00:54]} 20. Kb1 {[%clk 0:02:00]}  Rd8 {[%clk 0:00:23]} 21. Bxc4 {[%clk 0:01:53]}  Qxc4 {[%clk 0:00:19]} 22. Qxe5 {[%clk 0:01:48]}  f6 {[%clk 0:00:16]} 23. Nxe6+ {[%clk 0:01:33]}  Ke7 {[%clk 0:00:15]} 24. Qc7+ {[%clk 0:01:29]}  Qxc7 {[%clk 0:00:09]} 25. Nxc7 {[%clk 0:01:28]}  Rxd1+ {[%clk 0:00:08]} 26. Rxd1 {[%clk 0:01:27]}  f5 {[%clk 0:00:09]} 27. b3 {[%clk 0:01:17]}  Rc8 {[%clk 0:00:08]} 28. Nd5+ {[%clk 0:01:16]}  Ke6 {[%clk 0:00:08]} 29. Nf4+ {[%clk 0:01:15]}  Ke5 {[%clk 0:00:08]} 30. h4 {[%clk 0:01:09]}  Bd8 {[%clk 0:00:04]} 31. Re1+ {[%clk 0:00:56]}  Kf6 {[%clk 0:00:04]} 32. Re6+ {[%clk 0:00:56]}  Kg7 {[%clk 0:00:04]} 33. Rxa6 {[%clk 0:00:53]}  Rc3 {[%clk 0:00:03]} 34. Ne6+ {[%clk 0:00:51]}  Kg8 {[%clk 0:00:02]} 35. Bf4 {[%clk 0:00:49]} 1-0


[Site "https://www.chess.com"]

[Event "Titled Tuesday Blitz April 19 Early 2022"]
[White "Maksimenko, Viktor"]
[Black "Urazayev, Arystanbek"]
[WhiteFideId "13710478"]
[BlackFideId "13709810"]
[WhiteElo "2269"]
[BlackElo "2422"]
[Result "0-1"]
[Round "11"]
[TimeControl "180+1"]
[Date "2022.04.19"]
[WhiteClock "0:00:17"]
[BlackClock "0:00:23"]

1. d4 {[%clk 0:03:00]}  Nf6 {[%clk 0:02:59]} 2. c4 {[%clk 0:03:01]}  e6 {[%clk 0:02:59]} 3. Nf3 {[%clk 0:02:59]}  d5 {[%clk 0:03:00]} 4. g3 {[%clk 0:02:59]}  Bb4+ {[%clk 0:02:58]} 5. Bd2 {[%clk 0:02:59]}  a5 {[%clk 0:02:57]} 6. Bg2 {[%clk 0:02:58]}  O-O {[%clk 0:02:57]} 7. O-O {[%clk 0:02:52]}  c6 {[%clk 0:02:57]} 8. Qc2 {[%clk 0:02:51]}  b6 {[%clk 0:02:55]} 9. Bg5 {[%clk 0:02:49]}  Be7 {[%clk 0:02:54]} 10. Nbd2 {[%clk 0:02:48]}  Nbd7 {[%clk 0:02:48]} 11. Rfd1 {[%clk 0:02:41]}  Ba6 {[%clk 0:02:42]} 12. e4 {[%clk 0:02:39]}  Nxe4 {[%clk 0:02:40]} 13. Bxe7 {[%clk 0:02:38]}  Qxe7 {[%clk 0:02:40]} 14. Nxe4 {[%clk 0:02:39]}  dxe4 {[%clk 0:02:41]} 15. Qxe4 {[%clk 0:02:39]}  Bxc4 {[%clk 0:02:38]} 16. Qxc6 {[%clk 0:02:39]}  Bd5 {[%clk 0:02:32]} 17. Qb5 {[%clk 0:02:39]}  Qd6 {[%clk 0:02:21]} 18. Ne5 {[%clk 0:02:31]}  Nf6 {[%clk 0:02:14]} 19. Rac1 {[%clk 0:02:31]}  Rac8 {[%clk 0:02:10]} 20. a3 {[%clk 0:02:21]}  Rxc1 {[%clk 0:02:06]} 21. Rxc1 {[%clk 0:02:21]}  Bxg2 {[%clk 0:02:06]} 22. Kxg2 {[%clk 0:02:20]}  Qxd4 {[%clk 0:02:06]} 23. Nf3 {[%clk 0:02:16]}  Qd8 {[%clk 0:01:58]} 24. Rc6 {[%clk 0:02:11]}  Nd5 {[%clk 0:01:58]} 25. Qc4 {[%clk 0:02:11]}  h6 {[%clk 0:01:52]} 26. h4 {[%clk 0:02:08]}  Qf6 {[%clk 0:01:52]} 27. b4 {[%clk 0:02:04]}  axb4 {[%clk 0:01:53]} 28. axb4 {[%clk 0:02:05]}  Qb2 {[%clk 0:01:54]} 29. Qe4 {[%clk 0:01:57]}  Rb8 {[%clk 0:01:28]} 30. Rxe6 {[%clk 0:01:25]}  fxe6 {[%clk 0:00:53]} 31. Qxe6+ {[%clk 0:01:24]}  Kh8 {[%clk 0:00:53]} 32. Qxd5 {[%clk 0:01:24]}  Re8 {[%clk 0:00:46]} 33. b5 {[%clk 0:01:09]}  Qf6 {[%clk 0:00:42]} 34. Qd3 {[%clk 0:00:54]}  Qe6 {[%clk 0:00:40]} 35. Kg1 {[%clk 0:00:38]}  Qe4 {[%clk 0:00:38]} 36. Qb3 {[%clk 0:00:38]}  Rf8 {[%clk 0:00:35]} 37. Kg2 {[%clk 0:00:30]}  Rf5 {[%clk 0:00:33]} 38. Qa3 {[%clk 0:00:22]}  Rxb5 {[%clk 0:00:24]} 39. Qa8+ {[%clk 0:00:17]}  Qxa8 {[%clk 0:00:23]} 0-1


[Site "https://www.chess.com"]